bitfinex-derivatives/quotes_ETHF0:USTF0_20251013
["timestamp","ask_amount","ask_price","bid_price","bid_amount"]
[1760358885466,0.00196013,4132.1,4131.7,0.4353]
[1760358885467,0.43723013,4132.1,4131.8,0.262]
[1760358885663,1.3896,4132.0,4131.5,3.2078]
[1760358885963,1.3896,4132.0,4131.3,1.03217596]
[1760358885964,1.3896,4131.5,4131.3,0.262]
[1760358886163,1.9453,4131.6,4131.4,0.43533]
[1760358886460,1.9453,4131.6,4131.5,3.2078]
[1760358886461,1.3896,4131.6,4131.5,3.2078]
[1760358886666,2.38061,4131.6,4131.5,3.2078]
[1760358886867,1.9453,4131.6,4131.5,3.64312]
[1760358887160,0.00196013,4132.1,4131.5,3.64312]
[1760358887161,0.00196013,4132.1,4131.9,0.43527]
[1760358887366,0.00196013,4132.1,4132.0,3.4698]
[1760358887763,1.3896,4132.9,4132.3,1.08811]
[1760358887966,0.22,4133.3,4132.6,3.2078]
[1760358887967,0.5557,4132.8,4132.6,3.2078]
[1760358888164,1.3896,4132.7,4132.6,3.2078]
[1760358888466,2.38055,4132.2,4132.1,3.2078]
[1760358888766,0.4353,4131.8,4131.6,3.2078]
[1760358888961,1.3896,4132.1,4131.3,0.43534]
[1760358888962,1.3896,4131.6,4131.3,0.43534]
[1760358889164,1.3896,4131.5,4131.1,3.2078]
[1760358889371,3.1285771,4131.5,4131.4,0.43533]
[1760358889666,1.3896,4132.1,4132.0,0.43527]
[1760358889860,1.3896,4132.1,4131.4,1.35033]
[1760358889861,1.3896,4132.1,4131.9,3.2078]
[1760358890066,1.3896,4132.0,4131.5,0.262]
[1760358890262,1.3896,4132.0,4131.0,3.2078]
[1760358890263,1.3896,4131.5,4131.0,3.2078]
[1760358890468,0.5557,4131.6,4131.0,3.2078]
[1760358890469,1.3896,4131.1,4131.0,3.2078]
[1760358890664,3.14896083,4131.4,4131.2,0.43535]
[1760358890864,3.14896083,4131.4,4131.0,3.4698]
[1760358890865,1.3896,4131.1,4131.0,3.4698]
[1760358891765,0.5557,4131.6,4131.1,0.43537]
[1760358891968,1.3896,4131.4,4131.2,0.43535]
[1760358892170,0.43533,4131.5,4131.2,0.43535]
[1760358892375,3.2078,4131.5,4131.0,0.262]
[1760358892672,1.3896,4130.8,4130.6,0.43542]
[1760358892867,0.5557,4131.0,4130.5,3.4698]
[1760358893169,1.3896,4130.9,4130.5,3.4698]
[1760358893464,1.3896,4131.0,4130.9,0.43539]
[1760358893670,1.3896,4131.0,4130.9,0.69739]
[1760358893863,1.9453,4131.6,4131.5,0.43532]
[1760358894064,1.3896,4132.1,4131.9,0.43527]
[1760358894261,0.5557,4131.6,4131.5,3.2078]
[1760358894461,0.5557,4131.6,4130.2,0.00288793]
[1760358894462,1.3896,4131.2,4131.1,3.2078]
[1760358894666,1.3896,4131.2,4130.3,0.59683596]
[1760358894667,0.99114,4130.4,4130.3,0.59683596]
[1760358894864,1.3896,4130.3,4130.2,0.00288793]
[1760358895166,0.4355,4129.8,4129.6,0.59683596]
[1760358895372,1.3896,4129.7,4129.1,0.59683596]
[1760358895559,1.3896,4129.7,4129.2,0.59683596]
[1760358895761,1.3896,4129.4,4129.3,0.59683596]
[1760358895960,0.5557,4129.2,4128.7,0.85883596]
[1760358896173,0.55824783,4129.2,4128.8,1.03243596]
[1760358896366,0.55824783,4129.2,4128.9,0.59683596]
[1760358896367,1.3896,4129.0,4128.9,0.59683596]
[1760358896559,3.52242982,4129.1,4128.7,0.00289166]
[1760358896560,0.43561,4128.8,4128.7,0.00289166]
[1760358896760,5.03301,4128.8,4128.7,0.00289166]
[1760358896966,1.3896,4128.5,4128.1,0.5972718]
[1760358897267,3.11896683,4128.4,4128.3,0.43566]
[1760358897459,3.11896683,4128.4,4128.3,0.5972718]
[1760358897658,0.5557,4128.6,4128.3,0.5972718]
[1760358897659,3.55460683,4128.5,4128.3,0.5972718]
[1760358897866,0.5557,4128.0,4127.8,0.02422598]
[1760358898065,1.6516,4127.9,4127.8,0.01505551]
[1760358898265,4.77056683,4127.9,4127.8,0.01699997]
[1760358898871,0.43577,4127.3,4126.9,0.262]
[1760358899071,0.5557,4127.4,4126.9,0.262]
[1760358899372,3.10856484,4127.3,4126.9,0.262]
[1760358899573,1.3896,4127.0,4126.8,0.43581]
[1760358899871,0.99146,4127.4,4126.9,0.00182991]
[1760358900168,0.8177,4127.4,4127.0,3.6436]
[1760358900370,0.8177,4127.4,4126.9,0.00182991]
[1760358900371,0.4358,4127.1,4126.9,0.00182991]
[1760358900572,0.5557,4126.2,4126.0,3.83588436]
[1760358900768,1.3896,4126.1,4126.0,0.62808436]
[1760358901068,1.3896,4126.1,4126.0,0.4359]
[1760358901263,1.3896,4126.7,4126.0,3.2078]
[1760358901467,1.6506,4127.3,4126.5,3.2078]
[1760358901666,1.3896,4127.2,4127.0,0.43579]
[1760358901867,1.3896,4127.2,4127.1,3.2078]
[1760358902066,1.3896,4127.8,4127.1,3.2078]
[1760358902271,1.3896,4127.8,4127.1,0.261]
[1760358902462,0.5557,4127.4,4126.7,0.62808436]
[1760358902773,0.5557,4126.8,4126.1,3.2078]
[1760358903073,0.5557,4126.8,4126.5,0.00219032]
[1760358903270,0.5557,4126.8,4126.6,0.43583]
[1760358903573,1.3896,4126.7,4126.6,0.43583]
[1760358903982,1.39136562,4127.3,4127.2,0.43578]
[1760358904170,0.00176562,4127.3,4126.6,3.2078]
[1760358904469,3.09782156,4127.2,4127.0,0.43579]
[1760358904671,3.09958718,4127.3,4127.2,0.43578]
[1760358904672,0.00176562,4127.3,4127.2,0.43578]
[1760358904870,0.00176562,4127.3,4127.1,3.2078]
[1760358904871,1.3896,4127.2,4127.1,3.2078]
[1760358905073,1.3896,4127.1,4126.9,0.4358]
[1760358905469,0.00176562,4127.3,4127.2,0.43578]
[1760358905667,1.39136562,4127.3,4127.0,0.43579]
[1760358905867,1.3896,4126.9,4126.5,3.64584032]
[1760358906072,1.3896,4126.6,4126.5,0.00219032]
[1760358906473,4.47755918,4126.6,4126.5,0.00219032]
[1760358907667,4.17757918,4126.6,4125.4,3.4698]
[1760358907876,4.17757918,4126.6,4124.4,0.261]
[1760358907877,3.2078,4125.8,4124.4,0.261]
[1760358908065,0.5557,4126.2,4124.4,0.261]
[1760358908066,1.9453,4125.0,4124.7,0.43604]
[1760358908270,1.9453,4125.0,4124.3,3.2078]
[1760358908271,1.3896,4124.9,4124.3,3.2078]
[1760358908570,1.3896,4124.8,4124.3,3.2078]
[1760358908767,0.261,4124.8,4123.8,0.43613]
[1760358908971,1.3896,4124.3,4124.1,0.4361]
[1760358909172,1.3896,4125.1,4124.2,4.7061]
[1760358909378,1.3896,4124.7,4124.6,0.43605]
[1760358909572,1.3896,4124.7,4124.2,3.2078]
[1760358909573,3.2078,4124.7,4124.2,0.262]
[1760358909778,6.32828801,4124.7,4124.2,0.262]
[1760358909975,6.32828801,4124.7,4124.1,0.00204274]
[1760358909976,1.3896,4124.6,4124.1,0.00204274]
[1760358910178,1.3896,4124.7,4124.6,0.43605]
[1760358910375,1.3925622,4125.1,4125.0,0.43601]
[1760358910576,0.5586622,4125.1,4124.8,0.43603]
[1760358910872,0.5586622,4125.1,4124.5,0.43605]
[1760358910873,4.5931904,4125.0,4124.5,0.43605]
[1760358911078,1.3896,4124.9,4124.3,3.2078]
[1760358911282,1.3896,4124.9,4124.7,0.43604]
[1760358911480,4.48816695,4124.8,4124.7,0.43604]
[1760358911676,4.48816695,4124.8,4124.2,0.261]
[1760358911677,1.3896,4124.7,4124.2,0.261]
[1760358911980,6.30636695,4124.8,4124.1,0.00204274]
[1760358911981,3.09856695,4124.6,4124.1,0.00204274]
[1760358912278,1.3896,4124.5,4124.4,0.43607]
[1760358914072,1.9453,4124.4,4124.2,0.43609]
[1760358914276,1.3896,4124.3,4124.2,0.43609]
[1760358914581,1.3896,4124.2,4124.1,0.00204274]
[1760358914784,1.3896,4124.2,4124.1,4.274e-05]
[1760358914982,4.52332903,4124.2,4124.1,4.274e-05]
[1760358918580,4.78432903,4124.2,4124.1,4.274e-05]
[1760358918970,4.52332903,4124.2,4124.1,0.43615274]
[1760358919170,3.13372903,4124.2,4124.1,4.274e-05]
[1760358921678,0.5557,4124.4,4124.2,0.43609]
[1760358921979,3.61603121,4124.2,4124.1,4.274e-05]
[1760358922176,3.61603121,4124.2,4123.5,3.2078]
[1760358922177,0.5472,4123.0,4122.9,0.43623]
[1760358922376,0.5472,4123.0,4122.8,0.02425536]
[1760358922576,3.2078,4123.3,4123.2,0.4362]
[1760358922779,1.3743,4123.2,4123.1,0.43621]
[1760358922980,4.57407928,4123.2,4123.1,0.43621]
[1760358923377,1.9215,4123.0,4122.9,0.43622]
[1760358923685,5.55622558,4123.0,4122.8,0.02425536]
[1760358923888,5.55622558,4123.0,4122.9,0.00249009]
[1760358924186,5.38099558,4123.0,4122.9,0.00249009]
[1760358924380,5.11999558,4123.0,4122.9,0.59651074]
[1760358924978,5.11999558,4123.0,4122.9,0.59612416]
[1760358925688,0.5472,4122.5,4121.9,0.63027049]
[1760358925875,0.5472,4122.5,4121.8,3.2078]
[1760358925876,1.3743,4121.9,4121.8,3.83807049]
[1760358926082,1.3743,4121.9,4121.8,0.63027049]
[1760358926285,1.3743,4121.8,4121.7,0.63027049]
[1760358926487,1.37662044,4121.8,4121.7,0.63205241]
[1760358926781,4.50399628,4121.8,4121.7,0.6337065]
[1760358926990,1.37662044,4121.8,4121.7,0.00178192]
[1760358927188,4.50399628,4121.8,4121.7,0.00178192]
[1760358927484,4.50399628,4121.8,4121.7,0.63393879]
[1760358927686,4.50399628,4121.8,4121.7,0.00178192]
[1760358928078,4.76399628,4121.8,4121.7,0.00178192]
[1760358928982,4.50399628,4121.8,4121.7,0.00178192]
[1760358929290,4.94034628,4121.8,4121.7,0.00178192]
[1760358929484,1.3743,4121.4,4121.1,0.63215687]
[1760358929685,1.3743,4121.4,4121.3,0.4364]
[1760358930082,4.50133797,4121.4,4121.3,0.4364]
[1760358930385,4.50133797,4121.4,4121.3,0.43878776]
[1760358930386,1.3743,4121.4,4121.3,0.43878776]
[1760358930590,1.3743,4121.4,4121.3,1.07094463]
[1760358930783,1.3743,4121.4,4121.3,0.43878776]
[1760358932789,0.26,4121.7,4121.3,3.21018776]
[1760358932994,0.00232044,4121.8,4121.7,1.3878]
[1760358933198,0.00232044,4121.8,4121.7,2.2242056]
[1760358933796,0.00232044,4121.8,4121.7,1.3878]
[1760358934296,1.9215,4123.0,4122.9,0.43623]
[1760358934698,1.9215,4123.0,4122.7,0.63290228]
[1760358934699,5.11473322,4123.0,4122.7,0.63290228]
[1760358934906,5.11473322,4123.0,4122.8,0.43624]
[1760358935401,1.3743,4122.9,4122.8,0.43624]
[1760358935799,4.51979365,4122.9,4122.8,0.43624]
[1760358936298,4.51979365,4122.9,4122.8,1.07048764]
[1760358936906,4.51979365,4122.9,4122.8,0.43624]
[1760358937100,4.51979365,4122.9,4122.8,1.0705404]
[1760358937309,0.00312719,4123.0,4122.8,1.28010971]
[1760358937501,0.00312719,4123.0,4122.9,1.86104295]
[1760358937700,1.3743,4124.1,4124.0,0.43612]
[1760358938011,1.3743,4124.6,4124.5,0.43606]
[1760358938307,3.2078,4124.7,4124.5,0.43606]
[1760358938308,1.9215,4125.0,4124.9,0.43602]
[1760358938504,1.9215,4125.0,4124.9,1.03125838]
[1760358938703,5.11904172,4125.0,4124.9,1.03125838]
[1760358938906,0.43593,4125.8,4124.9,1.03125838]
[1760358938907,3.2078,4125.7,4125.2,2.47776]
[1760358939098,1.9215,4126.0,4125.9,0.43591]
[1760358939301,1.92465163,4126.0,4125.9,1.03114838]
[1760358939501,5.1245388,4126.0,4125.9,1.03114838]
[1760358939709,5.5604388,4126.0,4125.4,0.63269087]
[1760358939905,4.5821,4125.5,4125.4,0.63269087]
[1760358940105,4.5821,4125.5,4125.4,1.66208812]
[1760358940312,4.5821,4125.5,4125.4,1.02939725]
[1760358940313,8.32918717,4125.5,4125.4,1.02939725]
[1760358940810,0.55035163,4126.0,4125.9,0.43591]
[1760358940811,1.92465163,4126.0,4125.9,0.43591]
[1760358941104,5.02607314,4126.0,4125.9,1.02933725]
[1760358941305,5.02607314,4126.0,4125.4,0.63241218]
[1760358941611,1.3743,4125.7,4125.6,0.43595]
[1760358941807,1.3743,4125.7,4125.6,1.02900997]
[1760358942103,1.3743,4125.7,4125.6,1.66100638]
[1760358942307,1.3743,4125.7,4125.6,1.02900997]
[1760358942506,1.3743,4125.7,4125.6,0.59305997]
[1760358942708,1.3743,4125.7,4125.0,1.26598406]
[1760358942709,0.5472,4125.5,4124.8,0.63193035]
[1760358942907,1.3743,4125.2,4124.8,0.63193035]
[1760358943112,1.3743,4125.2,4124.7,0.84398937]
[1760358943113,0.259,4125.1,4124.7,0.84398937]
[1760358943307,1.3743,4125.0,4124.8,0.43602]
[1760358943709,4.51110095,4125.0,4124.8,0.43602]
[1760358944008,3.13680095,4125.0,4124.8,0.43602]
[1760358944213,3.2078,4125.4,4125.3,0.43598]
[1760358944409,4.5821,4125.4,4125.3,0.43598]
[1760358944605,7.74444869,4125.4,4125.3,0.43598]
[1760358944802,7.74444869,4125.4,4125.0,0.84248804]
[1760358944803,0.259,4125.7,4125.2,1.93246804]
[1760358945005,4.5821,4125.9,4125.3,1.3878]
[1760358945210,0.26215163,4126.0,4125.5,1.3878]
[1760358945409,0.26215163,4126.0,4125.9,0.43591]
[1760358945610,1.73465163,4126.0,4125.4,0.84248804]
[1760358945815,1.73465163,4126.0,4125.2,0.259]
[1760358945816,7.50661554,4126.0,4125.5,0.43596]
[1760358946010,7.50661554,4126.0,4125.6,0.43594]
[1760358946213,1.90842,4125.9,4125.6,0.43594]
[1760358946413,1.4725,4125.7,4125.6,0.43594]
[1760358946708,4.57565144,4125.7,4124.9,0.00221416]
[1760358946910,1.4725,4125.3,4124.9,0.43822416]
[1760358947112,1.4725,4125.1,4125.0,0.43601]
[1760358947315,2.45571,4125.0,4124.9,0.00221416]
[1760358947510,2.71471,4125.0,4124.9,0.00221416]
[1760358947818,1.4725,4124.9,4123.9,0.84248804]
[1760358948118,1.4725,4124.4,4123.8,0.84248804]
[1760358948312,3.2078,4123.9,4123.6,0.84248804]
[1760358948614,3.2078,4123.9,4123.1,5.14081804]
[1760358948615,3.41343747,4123.8,4123.1,5.14081804]
[1760358948810,1.4725,4123.7,4123.6,0.00247305]
[1760358949320,4.62693747,4123.7,4123.6,0.00247305]
[1760358951209,1.4725,4123.6,4122.6,0.84248804]
[1760358951416,3.64405,4122.8,4122.4,0.43628]
[1760358951619,1.4725,4122.6,4122.4,0.43628]
[1760358951918,1.4725,4122.6,4122.1,3.2078]
[1760358951919,1.4725,4122.3,4122.0,0.43632]
[1760358952119,0.43633,4122.0,4121.3,0.84248804]
[1760358952316,1.4725,4121.8,4121.4,0.43638]
[1760358952517,1.4725,4121.5,4121.4,0.00254258]
[1760358952722,1.7315,4121.5,4120.5,0.84248804]
[1760358953014,1.7315,4121.5,4120.0,1.9142]
[1760358953015,1.4725,4120.9,4120.2,0.84248804]
[1760358953215,0.259,4120.8,4120.1,0.84248804]
[1760358953410,3.48139803,4120.8,4120.1,0.84248804]
[1760358953611,3.48139803,4120.8,4120.6,0.43647]
[1760358953915,1.4725,4120.7,4120.6,0.43917995]
[1760358954218,4.69601939,4120.7,4120.6,0.00270995]
[1760358954715,4.69601939,4120.7,4120.6,0.5943929]
[1760358955419,4.69601939,4120.7,4120.6,0.00270995]
[1760358956618,3.2078,4121.1,4120.7,0.43646]
[1760358956821,1.4725,4120.9,4120.8,0.59072903]
[1760358957216,1.4725,4120.9,4120.6,0.00270995]
[1760358957217,3.14418958,4120.9,4120.6,0.00270995]
[1760358957420,1.7315,4120.8,4120.6,0.00270995]
[1760358957621,1.4725,4120.7,4120.6,0.00270995]
[1760358957818,4.57318843,4120.7,4120.6,0.00270995]
[1760358958220,4.83118843,4120.7,4120.6,0.00270995]
[1760358958422,3.2078,4121.1,4120.6,0.5930475]
[1760358958619,0.258,4121.0,4120.7,1.95333755]
[1760358958821,0.258,4121.0,4120.7,1.363]
[1760358959020,1.7305,4121.0,4120.9,0.43644]
[1760358959624,1.4725,4121.0,4120.9,0.43644]
[1760358960425,3.2078,4121.6,4120.9,1.68142645]
[1760358960617,1.4725,4121.5,4121.4,0.43639]
[1760358961122,3.22374251,4121.5,4121.4,0.43639]
[1760358961323,3.2078,4121.6,4121.5,1.363]
[1760358961822,0.258,4122.2,4121.5,1.363]
[1760358961823,3.2078,4122.2,4121.6,1.363]
[1760358962017,3.2078,4122.2,4122.1,1.79932]
[1760358962214,0.5422,4124.0,4123.5,0.43617]
[1760358962420,0.258,4124.4,4123.5,3.64396]
[1760358962620,4.61371937,4123.9,4123.1,1.363]
[1760358962816,1.7305,4123.9,4123.6,0.43615]
[1760358963022,3.14121937,4123.8,4123.7,0.43614]
[1760358963218,1.4725,4123.7,4123.6,0.00245164]
[1760358963524,0.00233898,4123.9,4123.8,1.363]
[1760358963923,0.00233898,4123.9,4123.6,0.00245164]
[1760358964123,1.90865,4123.7,4123.6,0.00245164]
[1760358964327,1.4725,4123.7,4123.6,0.00245164]
[1760358964624,4.6161943,4123.7,4123.6,0.00245164]
[1760358964822,4.6161943,4123.7,4122.6,0.43626]
[1760358965027,4.6161943,4123.7,4122.7,0.43625]
[1760358965028,1.4725,4123.5,4122.7,0.43625]
[1760358965229,3.1436943,4123.7,4122.8,0.43624]
[1760358965230,1.4725,4123.3,4122.8,0.43624]
[1760358965426,1.4725,4123.3,4122.9,0.43623]
[1760358965622,3.1654325,4123.2,4122.9,0.43623]
[1760358965823,3.1654325,4123.2,4122.7,0.43625]
[1760358966027,3.1654325,4123.3,4123.1,0.43621]
[1760358966329,0.00233898,4123.9,4123.8,0.43614]
[1760358967021,0.00233898,4123.9,4123.7,3.4658]
[1760358967227,0.00233898,4123.9,4123.7,3.64394]
[1760358967429,0.00233898,4123.9,4123.7,5.00694]
[1760358967728,1.4725,4123.8,4123.2,4.5708]
[1760358968026,1.4725,4123.6,4122.7,3.21031811]
[1760358968222,0.69418,4123.5,4122.7,3.21031811]
[1760358968423,0.43618,4123.4,4122.9,0.43622]
[1760358968724,3.09586894,4123.3,4123.1,0.4362]
[1760358968917,4.56836894,4123.3,4123.1,0.4362]
[1760358969122,0.545,4123.0,4122.7,3.21031811]
[1760358969325,0.545,4123.0,4121.1,1.363]
[1760358969326,1.4725,4122.8,4121.8,0.59005693]
[1760358969625,1.4725,4122.6,4121.7,4.5708]
[1760358969827,1.4725,4122.6,4122.3,3.2078]
[1760358969828,0.43627,4122.6,4122.3,3.2078]
[1760358970027,3.45285056,4122.7,4121.8,3.2078]
[1760358970028,1.4725,4122.4,4121.8,3.2078]
[1760358970229,3.19485056,4122.5,4121.9,0.43633]
[1760358970429,3.19485056,4122.3,4122.2,1.79931]
[1760358970627,3.21013898,4123.9,4122.6,1.09066]
[1760358970823,0.43619,4123.3,4122.8,0.43624]
[1760358971031,1.4725,4123.1,4122.8,0.43624]
[1760358971532,0.258,4123.5,4122.7,0.258]
[1760358971728,1.90874,4122.9,4122.5,3.2078]
[1760358971933,3.1742427,4123.0,4122.8,0.43624]
[1760358972231,0.258,4123.2,4122.5,3.2078]
[1760358972232,0.43618,4123.4,4123.0,0.43621]
[1760358972434,1.4725,4122.8,4122.5,3.2078]
[1760358972732,1.4725,4122.8,4122.7,0.43625]
[1760358972927,0.43622,4123.0,4122.5,3.2078]
[1760358973126,6.33645004,4123.4,4122.0,3.64412]
[1760358973127,0.43628,4122.5,4122.0,3.64412]
[1760358973424,0.258,4122.4,4121.6,0.59005693]
[1760358973629,1.90883,4122.0,4121.5,0.43638]
[1760358973830,1.90883,4122.0,4121.4,3.2078]
[1760358974035,5.62459433,4122.0,4121.3,0.258]
[1760358974727,5.62459433,4122.0,4121.3,0.6944]
[1760358975029,4.90126433,4122.0,4121.4,3.2078]
[1760358975229,5.33759433,4122.0,4121.4,3.2078]
[1760358976032,1.4335,4121.3,4121.2,0.59289205]
[1760358976333,4.55673213,4121.3,4121.2,0.59292683]
[1760358977137,4.55673213,4121.3,4121.2,0.59556571]
[1760358977831,4.6413,4122.1,4121.2,3.80336571]
[1760358978029,0.258,4122.0,4121.7,0.43636]
[1760358978229,3.77789083,4122.0,4121.8,0.59393528]
[1760358978429,3.77789083,4122.0,4121.7,0.43636]
[1760358978622,5.21139083,4122.0,4121.8,0.59392722]
[1760358978827,4.77506083,4122.0,4121.7,0.43636]
[1760358979031,5.21139083,4122.0,4121.8,0.59393529]
[1760358979232,3.77789083,4122.0,4121.7,0.43636]
[1760358979426,0.43635,4121.8,4121.2,3.21043888]
[1760358979741,1.4335,4121.6,4121.3,1.03043165]
[1760358979927,1.4335,4121.6,4121.4,0.59403165]
[1760358980132,1.6905,4121.6,4121.5,0.59403165]
[1760358980632,1.09047,4123.4,4121.9,1.3959]
[1760358980928,3.13366945,4122.4,4122.3,0.43629]
[1760358981129,3.13366945,4122.4,4122.3,1.03032165]
[1760358981324,1.4335,4122.5,4122.3,1.03032165]
[1760358981528,1.4335,4122.5,4122.3,0.43629]
[1760358981723,4.56831548,4122.5,4122.3,0.43629]
[1760358982032,0.43618,4123.4,4122.4,5.19602186]
[1760358982236,0.4362,4123.2,4122.5,0.59232186]
[1760358982439,0.4362,4123.2,4122.9,0.43623]
[1760358982732,1.86972,4123.0,4122.7,0.43625]
[1760358982927,1.4335,4122.9,4122.7,0.43625]
[1760358983135,4.60001036,4122.9,4122.7,0.43625]
[1760358983342,4.60001036,4122.9,4122.8,0.59217816]
[1760358983637,4.60001036,4122.9,4122.7,0.43625]
[1760358984140,4.60001036,4122.9,4122.8,0.59205888]
[1760358984836,3.2078,4124.1,4123.6,0.43615]
[1760358985030,3.2078,4124.6,4123.8,1.3959]
[1760358985227,0.43609,4124.3,4123.8,1.3959]
[1760358985538,1.4335,4123.8,4123.6,0.257]
[1760358985935,1.4335,4123.8,4123.5,0.43616]
[1760358986239,0.2676,4123.5,4122.5,0.84248804]
[1760358986443,0.43625,4122.7,4122.6,0.5921348]
[1760358986741,1.4335,4122.5,4122.4,3.2078]
[1760358987134,4.58185819,4122.5,4122.4,3.2078]
[1760358987329,4.58185819,4122.5,4122.4,3.80033812]
[1760358987531,4.58185819,4122.5,4122.4,0.59253812]
[1760358987532,4.83885819,4122.5,4122.4,0.59253812]
[1760358987728,4.83885819,4122.5,4121.6,0.84248804]
[1760358987729,5.01813819,4122.5,4121.6,0.84248804]
[1760358987940,0.69329,4122.4,4121.7,0.59255789]
[1760358988129,1.4335,4122.3,4121.9,3.64413]
[1760358988335,3.11151896,4122.3,4122.0,0.59255789]
[1760358988535,1.86981,4122.2,4122.1,0.59255789]
[1760358988736,1.4335,4122.2,4122.1,0.59255789]
[1760358989042,4.57205156,4122.2,4122.1,0.59255789]
[1760358989238,4.82905156,4122.2,4122.1,0.59255789]
[1760358989732,0.9181,4121.7,4121.3,1.27888804]
[1760358989937,0.9181,4121.7,4121.3,0.84248804]
[1760358990137,3.78594522,4121.6,4121.3,0.84248804]
[1760358990340,3.34957522,4121.6,4121.2,0.00263888]
[1760358990540,0.43639,4121.4,4121.2,0.00263888]
[1760358990737,0.9181,4121.3,4121.2,0.00263888]
[1760358991038,4.03754598,4121.3,4121.2,0.00263888]
[1760358991242,4.47394598,4121.3,4121.2,0.00263888]
[1760358992035,4.03754598,4121.3,4121.2,0.00263888]
[1760358992542,0.9181,4121.2,4120.6,0.84248804]
[1760358992740,3.11944598,4121.3,4120.5,0.43648]
[1760358992741,0.43645,4120.9,4120.5,0.43648]
[1760358992941,1.61156,4120.8,4120.5,0.84248804]
[1760358993138,4.75485815,4120.8,4120.4,1.27897804]
[1760358993439,0.9181,4120.7,4120.3,0.84248804]
[1760358993639,0.9181,4120.7,4120.3,0.00203682]
[1760358993640,0.9181,4120.5,4120.3,0.00203682]
[1760358993845,3.20565083,4120.7,4120.3,0.00203682]
[1760358993846,1.1751,4120.4,4120.3,1.28102486]
[1760358994049,4.37801699,4120.4,4120.3,0.84452486]
[1760358994241,1.1751,4120.4,4120.3,0.00203682]
[1760358994438,0.257,4120.4,4120.3,0.43854682]
[1760358994634,3.45991699,4120.4,4120.3,0.43854682]
[1760358994942,0.43654,4120.0,4119.9,0.84248804]
[1760358995142,0.43654,4120.0,4119.2,4.89930084]
[1760358995143,0.5214,4120.0,4119.2,3.2078]
[1760358995341,0.43663,4119.2,4118.7,4.05028804]
[1760358995541,0.257,4119.1,4118.7,4.05028804]
[1760358995836,0.9161,4119.0,4118.7,4.05028804]
[1760358996041,0.9161,4119.0,4118.7,0.00170037]
[1760358996042,0.43665,4119.0,4118.7,0.00170037]
[1760358996345,1.35277,4118.8,4118.7,0.00170037]
[1760358996544,3.18269543,4118.9,4118.7,3.64618037]
[1760358996745,0.256,4118.8,4118.7,3.64618037]
[1760358996943,0.256,4118.8,4118.7,3.20950037]
[1760358997248,0.4366,4119.5,4118.7,4.60540037]
[1760358997447,0.4366,4119.5,4118.7,3.20950037]
[1760358997448,0.256,4119.1,4118.7,3.20950037]
[1760358997743,0.256,4119.1,4118.9,0.43665]
[1760358997937,3.14329987,4119.4,4119.1,1.3959]
[1760358998137,0.256,4119.7,4119.5,0.43659]
[1760358998547,3.39929987,4119.7,4119.5,0.43659]
[1760358998737,3.39929987,4119.7,4118.9,0.256]
[1760358998939,3.83586987,4119.7,4119.2,0.43662]
[1760358999446,0.2644,4119.5,4118.8,3.64446]
[1760358999744,0.9161,4119.1,4118.9,0.43665]
[1760358999944,0.256,4119.0,4118.9,0.43665]
[1760359000139,3.22615249,4119.0,4118.9,0.43665]
[1760359000340,0.4366,4119.5,4119.0,0.43664]
[1760359000542,0.9161,4119.4,4119.2,0.43662]
[1760359000747,3.22513158,4119.4,4119.2,1.3959]
[1760359001048,3.22513158,4119.5,4119.3,0.43661]
[1760359001246,0.256,4119.6,4119.5,0.43658]
[1760359001544,4.37034293,4119.6,4119.3,3.2078]
[1760359001749,3.45424293,4119.6,4119.3,3.2078]
[1760359001948,0.9161,4119.5,4119.4,0.4366]
[1760359002345,4.11434293,4119.5,4119.4,0.4366]
[1760359003150,4.11434293,4119.5,4118.8,4.29945]
[1760359003151,0.9161,4119.2,4118.8,3.2078]
[1760359003348,0.9161,4119.1,4118.9,1.02580569]
[1760359003547,4.01426416,4119.1,4119.0,0.43664]
[1760359003748,3.09816416,4119.1,4119.0,0.43664]
[1760359004250,3.09816416,4119.1,4118.9,0.58885053]
[1760359004447,3.09816416,4119.1,4118.7,0.00170037]
[1760359004448,1.35276,4118.9,4118.7,0.00170037]
[1760359004751,4.09909581,4118.8,4118.7,0.00170037]
[1760359005341,4.35509581,4118.8,4118.7,0.00170037]
[1760359005541,3.2078,4119.9,4119.2,0.43662]
[1760359005746,0.8723,4119.9,4119.3,1.4323]
[1760359005945,0.8723,4119.9,4119.1,1.09159]
[1760359005946,3.2174534,4119.7,4119.6,1.86888]
[1760359006152,3.2078,4120.4,4119.8,0.43656]
[1760359006350,0.8723,4120.3,4120.0,0.43654]
[1760359006555,0.8723,4120.2,4119.8,0.5883424]
[1760359006750,3.2174534,4120.3,4120.0,0.43653]
[1760359006956,3.2174534,4120.3,4120.2,0.43651]
[1760359006957,0.8723,4120.3,4120.2,0.43651]
[1760359007144,3.19422018,4120.3,4120.2,0.43651]
[1760359007456,4.06652018,4120.3,4120.1,0.43653]
[1760359007753,4.06652018,4120.3,4120.0,3.2078]
[1760359008050,3.19422018,4120.3,4119.5,5.7519424]
[1760359008250,0.87503384,4120.7,4120.5,0.43648]
[1760359008558,3.11700903,4120.6,4120.5,0.43648]
[1760359008753,3.37300903,4120.6,4120.5,1.86878]
[1760359009253,0.00273384,4120.7,4120.6,1.4323]
[1760359009457,0.00273384,4120.7,4120.6,5.2284424]
[1760359010157,0.00273384,4120.7,4120.6,3.2078]
[1760359010349,0.00273384,4120.7,4120.6,4.6401]
[1760359011460,0.87503384,4120.7,4120.6,3.2078]
[1760359011660,3.17835445,4120.7,4120.3,0.5883424]
[1760359011851,3.17835445,4120.7,4120.2,0.5883424]
[1760359012160,0.256,4120.8,4120.3,0.5883424]
[1760359012361,3.17835445,4120.7,4120.4,0.5883424]
[1760359012553,3.17835445,4120.7,4120.2,2.0206424]
[1760359012859,3.17835445,4120.7,4120.5,0.43648]
[1760359013254,3.1814908,4120.7,4120.5,0.43648]
[1760359013755,0.8655,4120.6,4120.4,1.02752644]
[1760359013956,0.8655,4120.6,4120.4,0.43649]
[1760359014157,3.16371051,4120.5,4120.4,0.43649]